fUSD/lending_fUSD_20250526
["ID","MTS","AMOUNT","RATE_DAILY","PERIOD"]
[362409918,1748256646892,-500.0,0.0004389,120]
[362409919,1748256646901,-500.0,0.0004389,120]
[362409921,1748256646910,-500.0,0.0004389,120]
[362409922,1748256646919,-500.0,0.0004389,120]
[362409934,1748256647086,-500.0,0.0004389,120]
[362409936,1748256647097,-500.0,0.0004389,120]
[362409938,1748256647106,-500.0,0.0004389,120]
[362409939,1748256647115,-500.0,0.0004389,120]
[362409941,1748256647125,-500.0,0.0004389,120]
[362409943,1748256647135,-500.0,0.0004389,120]
[362409945,1748256647144,-500.0,0.0004389,120]
[362409946,1748256647154,-500.0,0.0004389,120]
[362409948,1748256647163,-500.0,0.0004389,120]
[362409950,1748256647173,-500.0,0.0004389,120]
[362409951,1748256647182,-500.0,0.0004389,120]
[362409953,1748256647192,-500.0,0.0004389,120]
[362409955,1748256647201,-500.0,0.0004389,120]
[362409956,1748256647211,-500.0,0.0004389,120]
[362409958,1748256647220,-500.0,0.0004389,120]
[362409960,1748256647229,-500.0,0.0004389,120]
[362409961,1748256647238,-500.0,0.0004389,120]
[362409963,1748256647248,-500.0,0.0004389,120]
[362409965,1748256647257,-500.0,0.0004389,120]
[362409966,1748256647266,-500.0,0.0004389,120]
[362409968,1748256647279,-500.0,0.0004389,120]
[362409970,1748256647289,-500.0,0.0004389,120]
[362409971,1748256647299,-500.0,0.0004389,120]
[362409973,1748256647310,-500.0,0.0004389,120]
[362409975,1748256647320,-500.0,0.0004389,120]
[362409976,1748256647329,-500.0,0.0004389,120]
[362409978,1748256647338,-500.0,0.0004389,120]
[362409980,1748256647348,-500.0,0.0004389,120]
[362409981,1748256647358,-500.0,0.0004389,120]
[362409983,1748256647367,-500.0,0.0004389,120]
[362409985,1748256647378,-500.0,0.0004389,120]
[362409986,1748256647388,-500.0,0.0004389,120]
[362409988,1748256647398,-500.0,0.0004389,120]
[362409990,1748256647407,-500.0,0.0004389,120]
[362409991,1748256647416,-500.0,0.0004389,120]
[362409993,1748256647425,-500.0,0.0004389,120]
[362409995,1748256647434,-500.0,0.0004389,120]
[362409996,1748256647443,-500.0,0.0004389,120]
[362409998,1748256647453,-500.0,0.0004389,120]
[362409999,1748256647462,-500.0,0.0004389,120]
[362410001,1748256647472,-500.0,0.0004389,120]
[362410003,1748256647481,-500.0,0.0004389,120]
[362410004,1748256647490,-500.0,0.0004389,120]
[362410006,1748256647500,-500.0,0.0004389,120]
[362410008,1748256647509,-500.0,0.0004389,120]
[362410009,1748256647518,-500.0,0.0004389,120]
[362410011,1748256647527,-500.0,0.0004389,120]
[362410013,1748256647536,-500.0,0.0004389,120]
[362410014,1748256647545,-500.0,0.0004389,120]
[362410016,1748256647556,-500.0,0.0004389,120]
[362410018,1748256647565,-500.0,0.0004389,120]
[362410019,1748256647574,-500.0,0.0004389,120]
[362410021,1748256647583,-500.0,0.0004389,120]
[362410023,1748256647592,-500.0,0.0004389,120]
[362410024,1748256647601,-500.0,0.0004389,120]
[362410026,1748256647611,-500.0,0.0004389,120]
[362410028,1748256647620,-500.0,0.0004389,120]
[362410030,1748256647630,-500.0,0.0004389,120]
[362410032,1748256647640,-500.0,0.0004389,120]
[362410033,1748256647650,-500.0,0.0004389,120]
[362410035,1748256647659,-500.0,0.0004389,120]
[362410037,1748256647669,-500.0,0.0004389,120]
[362410039,1748256647679,-500.0,0.0004389,120]
[362410041,1748256647689,-500.0,0.0004389,120]
[362410043,1748256647698,-811.0,0.0004389,120]
[362410044,1748256647708,-500.0,0.0004389,120]
[362410045,1748256647718,-500.0,0.0004389,120]
[362410046,1748256647727,-500.0,0.0004389,120]
[362410047,1748256647737,-500.0,0.0004389,120]
[362410048,1748256647746,-500.0,0.0004389,120]
[362410049,1748256647755,-500.0,0.0004389,120]
[362410050,1748256647765,-500.0,0.0004389,120]
[362410051,1748256647774,-500.0,0.0004389,120]
[362410052,1748256647784,-500.0,0.0004389,120]
[362410053,1748256647794,-500.0,0.0004389,120]
[362410054,1748256647806,-500.0,0.0004389,120]
[362410055,1748256647816,-500.0,0.0004389,120]
[362410056,1748256647825,-500.0,0.0004389,120]
[362410057,1748256647834,-500.0,0.0004389,120]
[362410058,1748256647843,-500.0,0.0004389,120]
[362410059,1748256647852,-500.0,0.0004389,120]
[362410060,1748256647863,-500.0,0.0004389,120]
[362410062,1748256647872,-500.0,0.0004389,120]
[362410063,1748256647882,-500.0,0.0004389,120]
[362410065,1748256647891,-500.0,0.0004389,120]
[362410067,1748256647901,-500.0,0.0004389,120]
[362410069,1748256647910,-500.0,0.0004389,120]
[362410071,1748256647919,-500.0,0.0004389,120]
[362410073,1748256647928,-500.0,0.0004389,120]
[362410075,1748256647939,-500.0,0.0004389,120]
[362410077,1748256647948,-500.0,0.0004389,120]
[362410079,1748256647957,-500.0,0.0004389,120]
[362410080,1748256647969,-500.0,0.0004389,120]
[362410082,1748256647978,-500.0,0.0004389,120]
[362410084,1748256647987,-500.0,0.0004389,120]
[362410086,1748256647996,-500.0,0.0004389,120]
[362410088,1748256648005,-500.0,0.0004389,120]
[362410090,1748256648014,-500.0,0.0004389,120]
[362410092,1748256648023,-500.0,0.0004389,120]
[362410094,1748256648032,-500.0,0.0004389,120]
[362410096,1748256648042,-500.0,0.0004389,120]
[362410098,1748256648053,-500.0,0.0004389,120]
[362410100,1748256648062,-500.0,0.0004389,120]
[362410102,1748256648071,-500.0,0.0004389,120]
[362410104,1748256648082,-500.0,0.0004389,120]
[362410106,1748256648091,-500.0,0.0004389,120]
[362410108,1748256648100,-500.0,0.0004389,120]
[362410110,1748256648110,-500.0,0.0004389,120]
[362410112,1748256648119,-500.0,0.0004389,120]
[362410114,1748256648127,-500.0,0.0004389,120]
[362410116,1748256648137,-500.0,0.0004389,120]
[362410118,1748256648146,-500.0,0.0004389,120]
[362410120,1748256648155,-500.0,0.0004389,120]
[362410122,1748256648164,-640.0,0.0004389,120]
[362410124,1748256648174,-500.0,0.0004389,120]
[362410126,1748256648183,-500.0,0.0004389,120]
[362410128,1748256648192,-500.0,0.0004389,120]
[362410130,1748256648202,-500.0,0.0004389,120]
[362410132,1748256648211,-500.0,0.0004389,120]
[362410134,1748256648221,-500.0,0.0004389,120]
[362410136,1748256648230,-500.0,0.0004389,120]
[362410138,1748256648239,-500.0,0.0004389,120]
[362410140,1748256648249,-500.0,0.0004389,120]
[362410142,1748256648258,-500.0,0.0004389,120]
[362410144,1748256648267,-500.0,0.0004389,120]
[362410146,1748256648276,-500.0,0.0004389,120]
[362410148,1748256648285,-500.0,0.0004389,120]
[362410149,1748256648295,-500.0,0.0004389,120]
[362410151,1748256648308,-500.0,0.0004389,120]
[362410154,1748256648319,-500.0,0.0004389,120]
[362410155,1748256648329,-500.0,0.0004389,120]
[362410157,1748256648338,-500.0,0.0004389,120]
[362410159,1748256648348,-500.0,0.0004389,120]
[362410161,1748256648358,-500.0,0.0004389,120]
[362410163,1748256648367,-500.0,0.0004389,120]
[362410165,1748256648376,-500.0,0.0004389,120]
[362410167,1748256648387,-500.0,0.0004389,120]
[362410169,1748256648398,-500.0,0.0004389,120]
[362410171,1748256648408,-500.0,0.0004389,120]
[362410173,1748256648417,-500.0,0.0004389,120]
[362410175,1748256648427,-500.0,0.0004389,120]
[362410177,1748256648436,-500.0,0.0004389,120]
[362410179,1748256648446,-500.0,0.0004389,120]
[362410182,1748256648456,-500.0,0.0004389,120]
[362410184,1748256648465,-500.0,0.0004389,120]
[362410186,1748256648476,-500.0,0.0004389,120]
[362410187,1748256648486,-500.0,0.0004389,120]
[362410189,1748256648495,-500.0,0.0004389,120]
[362410191,1748256648506,-500.0,0.0004389,120]
[362410193,1748256648516,-500.0,0.0004389,120]
[362410195,1748256648525,-500.0,0.0004389,120]
[362410197,1748256648534,-500.0,0.0004389,120]
[362410199,1748256648544,-500.0,0.0004389,120]
[362410201,1748256648554,-500.0,0.0004389,120]
[362410203,1748256648564,-500.0,0.0004389,120]
[362410205,1748256648574,-500.0,0.0004389,120]
[362410207,1748256648584,-500.0,0.0004389,120]
[362410209,1748256648594,-500.0,0.0004389,120]
[362410211,1748256648604,-500.0,0.0004389,120]
[362410213,1748256648614,-500.0,0.0004389,120]
[362410215,1748256648623,-500.0,0.0004389,120]
[362410217,1748256648632,-500.0,0.0004389,120]
[362410219,1748256648642,-500.0,0.0004389,120]
[362410222,1748256648652,-500.0,0.0004389,120]
[362410223,1748256648661,-500.0,0.0004389,120]
[362410225,1748256648671,-500.0,0.0004389,120]
[362410227,1748256648680,-500.0,0.0004389,120]
[362410229,1748256648689,-500.0,0.0004389,120]
[362410231,1748256648698,-500.0,0.0004389,120]
[362410233,1748256648708,-500.0,0.0004389,120]
[362410235,1748256648717,-500.0,0.0004389,120]
[362410237,1748256648727,-500.0,0.0004389,120]
[362410239,1748256648736,-500.0,0.0004389,120]
[362410241,1748256648745,-500.0,0.0004389,120]
[362410243,1748256648755,-500.0,0.0004389,120]
[362410245,1748256648764,-500.0,0.0004389,120]
[362410247,1748256648773,-986.0,0.0004389,120]
[362410249,1748256648782,-500.0,0.0004389,120]
[362410251,1748256648792,-500.0,0.0004389,120]
[362410253,1748256648801,-500.0,0.0004389,120]
[362410255,1748256648810,-500.0,0.0004389,120]
[362410257,1748256648820,-500.0,0.0004389,120]
[362410259,1748256648829,-500.0,0.0004389,120]
[362410261,1748256648839,-500.0,0.0004389,120]
[362410263,1748256648848,-500.0,0.0004389,120]
[362410265,1748256648857,-500.0,0.0004389,120]
[362410267,1748256648867,-500.0,0.0004389,120]
[362410269,1748256648876,-500.0,0.0004389,120]
[362410271,1748256648885,-500.0,0.0004389,120]
[362410273,1748256648895,-500.0,0.0004389,120]
[362410275,1748256648904,-500.0,0.0004389,120]
[362410277,1748256648913,-500.0,0.0004389,120]
[362410279,1748256648922,-500.0,0.0004389,120]
[362410281,1748256648932,-500.0,0.0004389,120]
[362410283,1748256648941,-500.0,0.0004389,120]
[362410285,1748256648951,-500.0,0.0004389,120]
[362410287,1748256648961,-500.0,0.0004389,120]
[362410289,1748256648971,-500.0,0.0004389,120]
[362410291,1748256648980,-500.0,0.0004389,120]
[362410293,1748256648989,-500.0,0.0004389,120]
[362410295,1748256648999,-500.0,0.0004389,120]
[362410297,1748256649008,-500.0,0.0004389,120]
[362410299,1748256649018,-500.0,0.0004389,120]
[362410301,1748256649027,-500.0,0.0004389,120]
[362410303,1748256649037,-500.0,0.0004389,120]
[362410305,1748256649046,-894.0,0.0004389,120]
[362410307,1748256649060,-500.0,0.0004389,120]
[362410309,1748256649070,-500.0,0.0004389,120]
[362410311,1748256649080,-500.0,0.0004389,120]
[362410312,1748256649090,-500.0,0.0004389,120]
[362410314,1748256649100,-500.0,0.0004389,120]
[362410316,1748256649110,-500.0,0.0004389,120]
[362410332,1748256649250,-500.0,0.0004389,120]
[362410334,1748256649261,-500.0,0.0004389,120]
[362410336,1748256649271,-500.0,0.0004389,120]
[362410338,1748256649280,-500.0,0.0004389,120]
[362410339,1748256649290,-500.0,0.0004389,120]
[362410342,1748256649301,-500.0,0.0004389,120]
[362410343,1748256649315,-500.0,0.0004389,120]
[362410345,1748256649326,-500.0,0.0004389,120]
[362410347,1748256649336,-500.0,0.0004389,120]
[362410350,1748256649347,-500.0,0.0004389,120]
[362410351,1748256649356,-500.0,0.0004389,120]
[362410353,1748256649365,-500.0,0.0004389,120]
[362410355,1748256649374,-500.0,0.0004389,120]
[362410357,1748256649385,-500.0,0.0004389,120]
[362410359,1748256649394,-500.0,0.0004389,120]
[362410361,1748256649404,-500.0,0.0004389,120]
[362410363,1748256649413,-500.0,0.0004389,120]
[362410365,1748256649422,-500.0,0.0004389,120]
[362410367,1748256649432,-500.0,0.0004389,120]
[362410369,1748256649441,-500.0,0.0004389,120]
[362410371,1748256649451,-500.0,0.0004389,120]
[362410373,1748256649460,-500.0,0.0004389,120]
[362410375,1748256649470,-500.0,0.0004389,120]
[362410377,1748256649479,-500.0,0.0004389,120]
[362410379,1748256649489,-500.0,0.0004389,120]
[362410381,1748256649498,-500.0,0.0004389,120]
[362410383,1748256649508,-500.0,0.0004389,120]
[362410385,1748256649518,-500.0,0.0004389,120]
[362410387,1748256649528,-500.0,0.0004389,120]
[362410389,1748256649537,-500.0,0.0004389,120]
[362410391,1748256649547,-500.0,0.0004389,120]
[362410393,1748256649559,-500.0,0.0004389,120]
[362410395,1748256649568,-500.0,0.0004389,120]
[362410397,1748256649578,-500.0,0.0004389,120]
[362410399,1748256649588,-500.0,0.0004389,120]
[362410401,1748256649598,-500.0,0.0004389,120]
[362410403,1748256649608,-500.0,0.0004389,120]
[362410405,1748256649617,-500.0,0.0004389,120]
[362410407,1748256649627,-500.0,0.0004389,120]
[362410409,1748256649636,-500.0,0.0004389,120]
[362410411,1748256649646,-500.0,0.0004389,120]
[362410413,1748256649655,-500.0,0.0004389,120]
[362410415,1748256649664,-500.0,0.0004389,120]
[362410417,1748256649674,-500.0,0.0004389,120]
[362410419,1748256649684,-500.0,0.0004389,120]
[362410421,1748256649693,-500.0,0.0004389,120]
[362410423,1748256649703,-500.0,0.0004389,120]
[362410425,1748256649713,-500.0,0.0004389,120]
[362410427,1748256649723,-500.0,0.0004389,120]
[362410429,1748256649733,-500.0,0.0004389,120]
[362410431,1748256649742,-500.0,0.0004389,120]
[362410433,1748256649751,-500.0,0.0004389,120]
[362410435,1748256649760,-500.0,0.0004389,120]
[362410437,1748256649770,-500.0,0.0004389,120]
[362410439,1748256649779,-500.0,0.0004389,120]
[362410441,1748256649788,-500.0,0.0004389,120]
[362410443,1748256649798,-500.0,0.0004389,120]
[362410445,1748256649809,-500.0,0.0004389,120]
[362410447,1748256649818,-500.0,0.0004389,120]
[362410449,1748256649827,-541.0,0.0004389,120]
[362410451,1748256649836,-6777.77570134,0.0004389,3]
[362410453,1748256649846,-150.0,0.0004389,120]
[362410455,1748256649856,-150.0,0.0004389,2]
[362410457,1748256649865,-20000.0,0.000439,120]
[362410459,1748256649874,-150.0,0.00043917,120]
[362410461,1748256649884,-150.0,0.00043945,120]
[362410463,1748256649894,-150.0,0.00043972,120]
[362410465,1748256649905,-6777.77570134,0.0004398,3]
[362410467,1748256649914,-150.5,0.0004399,120]
[362410469,1748256649925,-154.30013086,0.00044,120]
[362410471,1748256649935,-150.0,0.00044,57]
[362410472,1748256649944,-1000.0,0.00044,120]
[362410474,1748256649954,-256.9056655,0.00044,120]
[362410476,1748256649965,-1099.0,0.00044,120]
[362410478,1748256649974,-10000.0,0.00044,20]
[362410480,1748256649984,-566.7,0.00044,14]
[362410482,1748256649993,-798.69,0.00044132,2]
[362410484,1748256650003,-6777.77570134,0.00044368,3]
[362410486,1748256650012,-417.0,0.00044471,7]
[362410488,1748256650021,-211.0,0.0004459,30]
[362410490,1748256650031,-160.0,0.000446,53]
[362410492,1748256650040,-2000.0,0.000449,2]
[362410494,1748256650051,-186.43356087,0.000449,17]
[362410496,1748256650061,-533.08429402,0.00044934,51]
[362410498,1748256650070,-27111.1028054,0.0004498,3]
[362410500,1748256650079,-20333.327104,0.0004499,3]
[362410502,1748256650089,-4329.2,0.00045,120]
[362410504,1748256650098,-4329.2,0.00045,120]
[362410506,1748256650108,-4329.2,0.00045,120]
[362410508,1748256650117,-4329.2,0.00045,120]
[362410510,1748256650127,-4329.2,0.00045,120]
[362410512,1748256650136,-10000.0,0.00045,30]
[362410514,1748256650146,-400.0,0.00045,120]
[362410516,1748256650155,-200.0,0.00045,120]
[362410517,1748256650164,-170.26,0.00045205,30]
[362410518,1748256650174,-208.0,0.00045211,10]
[362410519,1748256650183,-203.0,0.00045211,10]
[362410520,1748256650192,-150.0,0.00045549,30]
[362410521,1748256650201,-902.85084228,0.00045549,30]
[362410522,1748256650211,-150.0,0.00045549,30]
[362410523,1748256650220,-200.0,0.00045596,2]
[362410524,1748256650229,-200.0,0.00045596,2]
[362410525,1748256650239,-200.0,0.00045596,2]
[362410526,1748256650248,-200.0,0.00045596,2]
[362410527,1748256650257,-200.0,0.00045596,2]
[362410528,1748256650266,-200.0,0.00045596,2]
[362410529,1748256650276,-200.0,0.00045596,2]
[362410530,1748256650285,-200.0,0.00045596,2]
[362410532,1748256650294,-200.0,0.00045596,2]
[362410533,1748256650306,-200.0,0.00045596,2]
[362410535,1748256650320,-200.0,0.00045596,2]
[362410537,1748256650330,-200.0,0.00045596,2]
[362410539,1748256650340,-200.0,0.00045596,2]
[362410541,1748256650351,-200.0,0.00045596,2]
[362410543,1748256650361,-200.0,0.00045596,2]
[362410545,1748256650372,-200.0,0.00045596,2]
[362410548,1748256650381,-200.0,0.00045596,2]
[362410550,1748256650392,-200.0,0.00045596,2]
[362410552,1748256650402,-200.0,0.00045596,2]
[362410553,1748256650412,-200.0,0.00045596,2]
[362410556,1748256650423,-200.0,0.00045596,2]
[362410558,1748256650433,-200.0,0.00045596,2]
[362410560,1748256650444,-200.0,0.00045596,2]
[362410562,1748256650454,-200.0,0.00045596,2]
[362410564,1748256650463,-200.0,0.00045596,2]
[362410566,1748256650472,-200.0,0.00045596,2]
[362410568,1748256650481,-200.0,0.00045596,2]
[362410570,1748256650491,-200.0,0.00045596,2]
[362410571,1748256650500,-200.0,0.00045596,2]
[362410573,1748256650509,-200.0,0.00045596,2]
[362410575,1748256650520,-200.0,0.00045596,2]
[362410578,1748256650530,-200.0,0.00045596,2]
[362410579,1748256650540,-200.0,0.00045596,2]
[362410581,1748256650550,-200.0,0.00045596,2]
[362410583,1748256650560,-344.0,0.00045596,2]
[362410586,1748256650570,-160.0,0.000456,57]
[362410588,1748256650581,-6777.77570134,0.0004579,3]
[362410590,1748256650592,-2188.99,0.000458,90]
[362410592,1748256650601,-6777.77570134,0.0004589,3]
[362410594,1748256650610,-11591.15880042,0.000459,120]
[362410664,1748256651321,-4869.50709441,0.00019795,2]
[362410667,1748256651340,-566.91366244,0.00019795,2]
[362410673,1748256651388,-110.00055836,0.00019795,2]
[362410675,1748256651400,-497.06061393,0.00019795,2]
[362410677,1748256651411,-1265.75005867,0.00019795,2]
[362410718,1748256651792,-500.0,0.00019795,2]
[362410722,1748256651831,-1093.76822902,0.00019795,2]
[362410725,1748256651846,-3872.88856461,0.00019795,2]
[362410730,1748256651889,-957.28813669,0.00019795,2]
[362410923,1748256995230,250.0,0.00015,2]
[362410924,1748256996539,300.0,0.00017,2]
[362410928,1748257082665,805.88,0.00016732,2]
[362410929,1748257185138,200.0,0.00016648,2]
[362410931,1748257263094,218.99,0.00013699,2]
[362410932,1748257297244,765.94,0.00025044,120]
[362410933,1748257661890,4000.0,0.00017773,2]
[362410934,1748257675980,166.06,0.00017773,2]
[362410935,1748257691934,200.9771585,0.00017684,2]
[362410936,1748257729060,168.99,0.00017757,2]
[362410937,1748257747154,1000.0,0.00017757,2]
[362410938,1748257781436,2227.71,0.00017899,2]
[362410939,1748257784618,461.3928415,0.00017757,2]
[362410940,1748257784641,155.6871585,0.00017757,2]
[362410941,1748257785017,617.08,0.00017761,2]
[362410942,1748257785239,617.08,0.00017766,2]
[362410943,1748257785435,617.08,0.00017771,2]
[362410944,1748257785652,617.08,0.00017775,2]
[362410945,1748257788187,617.08,0.0001778,2]
[362410946,1748257788397,617.08,0.00017785,2]
[362410947,1748257788820,617.08,0.00017789,2]
[362410948,1748257789030,617.08,0.00017794,2]
[362410949,1748257789225,617.08,0.00017799,2]
[362410950,1748257789447,617.08,0.00017803,2]
[362410951,1748257789640,617.08,0.00017808,2]
[362410952,1748257789837,617.08,0.00017813,2]
[362410953,1748257790049,617.08,0.00017817,2]
[362410954,1748257790440,617.08,0.00017822,2]
[362410955,1748257790657,617.08,0.00017827,2]
[362410956,1748257790858,588.1128415,0.00017831,2]
[362410957,1748257790881,28.9671585,0.00017831,2]
[362410958,1748257791055,617.08,0.00017836,2]
[362410959,1748257791247,617.08,0.00017841,2]
[362410960,1748257791638,617.08,0.00017846,2]
[362410961,1748257807455,-562.64,0.00018065,2]
[362410962,1748257807479,-250.0,0.00018093,2]
[362410963,1748257807503,-200.0,0.00018093,2]
[362410964,1748257807536,-200.0,0.0001812,2]
[362410965,1748257807576,-200.0,0.00018149,2]
[362410966,1748257807601,-178.22407624,0.0001815,2]
[362410967,1748257807627,-765.94,0.00018214,2]
[362410968,1748257807651,-1211.1,0.00018255,2]
[362410969,1748257807685,-200.94,0.00018276,2]
[362410970,1748257807708,-1637.4109418,0.00018332,2]
[362410971,1748257807736,-1200.0,0.00018353,2]
[362410972,1748257807760,-300.0,0.00018354,2]
[362410973,1748257807784,-3093.74498196,0.00018355,2]
[362410974,1748257808840,-10000.0,0.00018355,2]
[362410975,1748257809638,-10000.0,0.00018355,2]
[362410976,1748257809973,-806.25501804,0.00018355,2]
[362410977,1748257809997,-500.0,0.00018373,2]
[362410978,1748257810019,-500.0,0.00018373,2]
[362410979,1748257810040,-500.0,0.00018373,2]
[362410980,1748257810062,-500.0,0.00018373,2]
[362410981,1748257810084,-626.97708266,0.00018373,2]
[362410982,1748257810105,-526.7129141,0.00018373,2]
[362410983,1748257810126,-153.04225253,0.00018373,2]
[362410984,1748257810148,-500.0,0.00018373,2]
[362410985,1748257810171,-501.12588274,0.00018373,2]
[362410986,1748257810193,-500.0,0.00018373,2]
[362410987,1748257810215,-468.9788985,0.00018498,2]
[362410988,1748257810239,-500.0,0.00018498,2]
[362410989,1748257810260,-500.0,0.00018498,2]
[362410990,1748257810281,-494.63159699,0.00018498,2]
[362410991,1748257810302,-500.0,0.00018498,2]
[362410992,1748257810324,-534.52494264,0.00018498,2]
[362410993,1748257810348,-500.0,0.00018498,2]
[362410994,1748257810370,-370.94859926,0.00018498,2]
[362410995,1748257810392,-500.0,0.00018498,2]
[362410996,1748257810415,-16.80281254,0.00018498,2]
[362410997,1748257810619,-483.19718746,0.00018498,2]
[362410998,1748257810644,-500.0,0.00018498,2]
[362410999,1748257810671,-500.0,0.00018498,2]
[362411000,1748257810700,-500.0,0.00018498,2]
[362411001,1748257810725,-499.99999999,0.00018498,2]
[362411002,1748257810749,-200.0,0.00018499,2]
[362411003,1748257810774,-500.0,0.00018499,2]
[362411004,1748257810798,-223.89133408,0.00018499,2]
[362411005,1748257810821,-2918.0956,0.00018502,2]
[362411006,1748257810845,-1347.1594,0.00018502,2]
[362411007,1748257810869,-227.1363,0.00018502,2]
[362411008,1748257810891,-1130.6547,0.00018502,2]
[362411009,1748257810913,-271.0999,0.00018502,2]
[362411010,1748257810936,-698.76557847,0.00018573,2]
[362411011,1748257811008,-8075.32140006,0.00018573,2]
[362411012,1748257811030,-1924.67859994,0.00018603,2]
[362411013,1748257813060,-500.0,0.00018373,2]
[362411014,1748257813083,-9500.0,0.00018603,2]
[362411015,1748257813939,647.554989,0.00017974,2]
[362411016,1748257813982,-10000.0,0.00018603,2]
[362411017,1748257814151,-10000.0,0.00018603,2]
[362411018,1748257814325,-10000.0,0.00018603,2]
[362411019,1748257814699,-10000.0,0.00018603,2]
[362411020,1748257815292,-10000.0,0.00018603,2]
[362411021,1748257815714,-10000.0,0.00018603,2]
[362411022,1748257816322,-10000.0,0.00018603,2]
[362411023,1748257816833,-10000.0,0.00018603,2]
[362411024,1748257817528,-10000.0,0.00018603,2]
[362411025,1748257817821,-10000.0,0.00018603,2]
[362411026,1748257818192,-10000.0,0.00018603,2]
[362411027,1748257818803,-674.56140006,0.00018603,2]
[362411028,1748257818826,-500.0,0.00018673,2]
[362411029,1748257818851,-500.0,0.00018673,2]
[362411030,1748257818873,-159.43065107,0.00018673,2]
[362411031,1748257818895,-159.47477646,0.00018673,2]
[362411032,1748257818917,-500.0,0.00018673,2]
[362411033,1748257818939,-500.0,0.00018673,2]
[362411034,1748257818961,-159.46571924,0.00018673,2]
[362411035,1748257818982,-500.0,0.00018673,2]
[362411036,1748257819005,-500.0,0.00018673,2]
[362411037,1748257819027,-500.0,0.00018673,2]
[362411038,1748257819050,-159.45512237,0.00018673,2]
[362411039,1748257819072,-500.0,0.00018673,2]
[362411040,1748257819097,-500.0,0.00018673,2]
[362411041,1748257819119,-500.0,0.00018673,2]
[362411042,1748257819141,-500.0,0.00018673,2]
[362411043,1748257819165,-3187.6123308,0.00018769,2]
[362411044,1748257819350,-6565.3876692,0.00018769,2]
[362411045,1748257819374,-315.53,0.00018769,2]
[362411046,1748257819397,-1185.77,0.00018814,2]
[362411047,1748257819422,-622.06063393,0.00018821,2]
[362411048,1748257819445,-1311.25169687,0.00018836,2]
[362411049,1748257819699,-540.76830313,0.00018836,2]
[362411050,1748257819723,-701.35838057,0.00018921,2]
[362411051,1748257819747,-502.47839955,0.00018921,2]
[362411052,1748257819773,-1000.0,0.00018921,2]
[362411053,1748257819795,-165.04,0.0001895,2]
[362411054,1748257819981,-2751.0,0.00018983,2]
[362411055,1748257820006,-805.88,0.00018996,2]
[362411056,1748257820028,-350.0,0.00019,2]
[362411057,1748257820050,-2500.0,0.00019078,2]
[362411058,1748257820072,-200.0,0.000191,2]
[362411059,1748257820096,-151.930503,0.00019178,2]
[362411060,1748257820122,-331.54441375,0.00019178,2]
[362411061,1748257820201,-162.01775125,0.00019178,2]